bitfinex-derivatives/quotes_BTCF0:USTF0_20241125
["timestamp","ask_amount","ask_price","bid_price","bid_amount"]
[1732573955423,0.3608,93510.0,93509.0,0.001]
[1732573955922,0.3608,93510.0,93506.0,7.705e-05]
[1732573955923,0.053485,93507.0,93506.0,7.705e-05]
[1732573956314,0.374325,93507.0,93506.0,7.705e-05]
[1732573956620,0.374325,93507.0,93500.0,0.1]
[1732573956621,0.053489,93501.0,93500.0,0.1]
[1732573956823,0.596889,93501.0,93500.0,0.1]
[1732573957011,0.917729,93501.0,93500.0,0.1]
[1732573957325,0.917729,93501.0,93461.0,0.44992]
[1732573957326,1.217729,93501.0,93461.0,0.44992]
[1732573957514,0.053507,93469.0,93461.0,0.00056]
[1732573957822,0.053507,93469.0,93468.0,0.00012547]
[1732573958018,0.374467,93469.0,93468.0,0.00012547]
[1732573958218,0.374467,93469.0,93468.0,4.7e-07]
[1732573958520,0.38501441,93469.0,93468.0,4.7e-07]
[1732573959529,0.38501441,93469.0,93441.0,1.5]
[1732573959530,0.32096,93468.0,93441.0,1.5]
[1732573959715,0.31054741,93469.0,93441.0,1.5]
[1732573959716,0.053523,93442.0,93441.0,1.5]
[1732573960023,0.053526,93437.0,93424.0,0.053533]
[1732573960320,0.053531,93428.0,93421.0,0.033]
[1732573960515,0.3608,93437.0,93422.0,0.00010179]
[1732573960516,0.5434,93437.0,93422.0,0.00010179]
[1732573961124,0.053533,93424.0,93422.0,0.00010179]
[1732573961518,0.18268,93423.0,93422.0,0.00010179]
[1732573961718,0.5038,93423.0,93422.0,0.00010179]
[1732573961917,0.5034,93423.0,93422.0,0.00010179]
[1732573962528,0.3608,93425.0,93422.0,0.00010179]
[1732573962823,0.3608,93428.0,93423.0,0.053533]
[1732573963024,0.3606,93428.0,93423.0,0.053533]
[1732573963324,0.053526,93436.0,93423.0,0.053533]
[1732573963516,0.3608,93444.0,93430.0,0.3608]
[1732573963717,0.18268,93462.0,93438.0,0.3608]
[1732573963920,0.053513,93459.0,93438.0,0.3608]
[1732573964117,0.053514,93458.0,93443.0,0.053522]
[1732573964615,0.18272,93462.0,93448.0,0.053519]
[1732573964822,0.236232,93462.0,93448.0,0.053519]
[1732573965017,0.053513,93460.0,93448.0,0.053519]
[1732573965515,0.01045591,93469.0,93447.0,0.3608]
[1732573965724,0.18248,93468.0,93447.0,0.3608]
[1732573966021,0.3608,93463.0,93447.0,0.3608]
[1732573966217,0.053514,93457.0,93447.0,0.3608]
[1732573966927,0.053516,93455.0,93447.0,0.3608]
[1732573967124,0.053513,93460.0,93447.0,0.3608]
[1732573967325,0.053513,93460.0,93448.0,0.053519]
[1732573967529,0.3608,93463.0,93448.0,0.053519]
[1732573967724,0.053513,93459.0,93448.0,0.053519]
[1732573967924,0.053513,93459.0,93447.0,0.3608]
[1732573968121,0.053513,93459.0,93449.0,0.053518]
[1732573968523,0.053513,93459.0,93447.0,0.3608]
[1732573968524,0.3608,93465.0,93451.0,0.053517]
[1732573968727,0.053514,93458.0,93451.0,0.053517]
[1732573969026,0.01057115,93471.0,93447.0,0.3608]
[1732573969027,0.053507,93469.0,93462.0,0.053511]
[1732573970225,0.053507,93469.0,93456.0,0.0307]
[1732573970226,0.053507,93469.0,93464.0,0.05351]
[1732573970427,0.00084,93476.0,93457.0,0.50352]
[1732573970631,0.00084,93490.0,93474.0,0.053504]
[1732573970927,0.00011785,93491.0,93490.0,0.053495]
[1732573971430,0.00011785,93491.0,93481.0,0.3608]
[1732573971731,0.00011785,93491.0,93490.0,0.3608]
[1732573975325,0.00011785,93491.0,93490.0,0.36090202]
[1732573977220,0.00011785,93491.0,93490.0,1.04258202]
[1732573977422,0.00011785,93491.0,93490.0,1.08127767]
[1732573977729,0.00011785,93491.0,93490.0,0.75170202]
[1732573977930,0.61538016,93530.0,93490.0,1.07592666]
[1732573978142,0.053484,93510.0,93509.0,0.3608]
[1732573978732,0.05348,93517.0,93511.0,0.053483]
[1732573978933,0.45024001,93530.0,93509.0,0.3608]
[1732573979231,0.053477,93521.0,93518.0,0.3608]
[1732573979432,0.053478,93520.0,93518.0,0.3608]
[1732573979829,0.18248,93528.0,93518.0,0.3608]
[1732573980029,0.053476,93524.0,93518.0,0.3608]
[1732573980425,0.053477,93522.0,93518.0,0.3608]
[1732573980637,0.18248,93528.0,93518.0,0.3608]
[1732573980638,0.053478,93520.0,93518.0,0.3608]
[1732573982532,0.01064716,93529.0,93520.0,0.053478]
[1732573982731,0.053471,93532.0,93528.0,0.3608]
[1732573982929,0.02140767,93544.0,93528.0,0.3608]
[1732573983126,0.05358026,93538.0,93536.0,0.3608]
[1732573983536,0.00011226,93538.0,93537.0,0.053468]
[1732573983832,0.00011226,93538.0,93536.0,0.3608]
[1732573983833,0.0091183,93538.0,93536.0,0.3608]
[1732573984026,0.00900604,93537.0,93536.0,0.414269]
[1732573984630,0.053478,93520.0,93518.0,0.3608]
[1732573984825,0.00900604,93520.0,93519.0,0.05361388]
[1732573985036,0.00900604,93520.0,93519.0,0.32427847]
[1732573985234,0.00900604,93520.0,93519.0,0.00347847]
[1732573985235,0.06248404,93520.0,93519.0,0.00347847]
[1732573986149,0.06248404,93520.0,93519.0,0.00013488]
[1732573986350,0.06247272,93520.0,93519.0,0.00013488]
[1732573986554,0.053478,93520.0,93519.0,0.00013488]
[1732573989540,0.01064055,93529.0,93519.0,0.00013488]
[1732573989741,0.053478,93520.0,93519.0,0.00013488]
[1732573991541,0.055478,93520.0,93519.0,0.00013488]
[1732573992151,0.053478,93520.0,93519.0,0.00013488]
[1732573992952,0.054478,93520.0,93519.0,0.00013488]
[1732573994359,0.053478,93520.0,93519.0,0.00013488]
[1732573994855,0.054478,93520.0,93519.0,0.00013488]
[1732573995544,0.055478,93520.0,93519.0,0.00013488]
[1732573995748,0.054478,93520.0,93519.0,0.00013488]
[1732573995945,0.053478,93520.0,93519.0,0.00013488]
[1732573997553,0.053478,93520.0,93519.0,0.05361388]
[1732573998048,0.053478,93520.0,93519.0,0.00013488]
[1732574000962,0.09459438,93521.0,93520.0,0.053478]
[1732574001351,0.14805887,93521.0,93520.0,0.053478]
[1732574001551,0.053478,93521.0,93520.0,0.053478]
[1732574002554,0.053478,93520.0,93519.0,0.00013488]
[1732574003351,0.49939211,93520.0,93519.0,0.00013488]
[1732574003557,0.374278,93520.0,93519.0,0.00013488]
[1732574004463,0.374279,93519.0,93518.0,0.3108]
[1732574004656,0.053479,93519.0,93518.0,0.3108]
[1732574004866,0.38335812,93519.0,93518.0,0.27736057]
[1732574005360,0.38335812,93519.0,93518.0,0.27744615]
[1732574005549,0.73536872,93519.0,93518.0,0.22754615]
[1732574005755,0.74136872,93519.0,93518.0,0.22754615]
[1732574007387,0.74136872,93519.0,93518.0,0.18897998]
[1732574007782,0.74136872,93519.0,93518.0,0.14695828]
[1732574008093,0.053488,93503.0,93502.0,0.3608]
[1732574008384,0.07887778,93503.0,93502.0,0.3608]
[1732574008773,0.07990475,93503.0,93502.0,0.3608]
[1732574008975,0.07993694,93503.0,93502.0,0.360925]
[1732574009485,0.08082654,93503.0,93502.0,0.360925]
[1732574009882,0.08085873,93503.0,93502.0,0.360925]
[1732574010081,0.08174833,93503.0,93502.0,0.360925]
[1732574010776,0.70347793,93503.0,93502.0,0.000125]
[1732574010969,0.70347793,93503.0,93493.0,0.19034646]
[1732574010970,0.053493,93494.0,93493.0,0.19034646]
[1732574011275,0.053493,93494.0,93493.0,0.14240142]
[1732574011276,0.62155751,93494.0,93493.0,0.14240142]
[1732574011469,0.94711601,93494.0,93493.0,0.14240142]
[1732574011981,0.053496,93488.0,93483.0,0.3608]
[1732574012166,0.06786259,93488.0,93483.0,0.3608]
[1732574012470,0.06786259,93488.0,93487.0,0.25390008]
[1732574012867,0.06786259,93488.0,93473.0,0.3608]
[1732574012868,0.053504,93474.0,93473.0,0.3608]
[1732574013058,0.053506,93471.0,93463.0,0.3608]
[1732574013368,0.00298,93472.0,93464.0,0.01047904]
[1732574013681,0.18897586,93482.0,93471.0,0.3608]
[1732574013969,0.3608,93502.0,93481.0,0.73047648]
[1732574014268,0.3608,93502.0,93492.0,0.053494]
[1732574015073,0.053499,93484.0,93472.0,0.00012672]
[1732574015425,0.053499,93484.0,93427.0,0.43422392]
[1732574015426,0.053506,93472.0,93445.0,0.0027]
[1732574015673,0.053518,93450.0,93443.0,0.053522]
[1732574016065,0.02694,93449.0,93441.0,0.3608]
[1732574016265,0.00262519,93445.0,93433.0,0.33065447]
[1732574016572,0.053522,93443.0,93442.0,0.0001097]
[1732574017268,0.05614719,93443.0,93442.0,0.0001097]
[1732574017966,0.37718719,93443.0,93442.0,0.0001097]
[1732574018470,0.053523,93442.0,93421.0,0.0312]
[1732574018766,0.3608,93422.0,93421.0,0.0312]
[1732574019568,0.36342519,93422.0,93421.0,0.03131498]
[1732574019959,0.36342519,93422.0,93421.0,0.00011498]
[1732574022669,0.053542,93408.0,93407.0,0.0312]
[1732574022874,0.414342,93408.0,93407.0,0.0312]
[1732574023583,0.41696719,93408.0,93407.0,0.03131195]
[1732574024077,0.41696719,93408.0,93407.0,0.00011195]
[1732574025475,0.42773377,93408.0,93407.0,0.00011195]
[1732574027866,0.74889377,93408.0,93407.0,0.00011195]
[1732574028269,0.74889377,93408.0,93393.0,0.0325]
[1732574028270,0.05355,93394.0,93393.0,0.0325]
[1732574028466,0.05355,93394.0,93389.0,0.0039]
[1732574028467,0.36342519,93394.0,93389.0,0.0039]
[1732574028668,0.053552,93390.0,93389.0,0.0039]
[1732574029179,0.053552,93390.0,93389.0,0.00401964]
[1732574029370,0.05617719,93390.0,93389.0,0.00401964]
[1732574029878,0.053567,93365.0,93364.0,0.0325]
[1732574030271,0.053567,93364.0,93361.0,0.01078315]
[1732574030576,0.00262519,93363.0,93357.0,0.414371]
[1732574030877,0.00262519,93363.0,93359.0,0.05357]
[1732574031372,0.00262519,93363.0,93358.0,0.00013757]
[1732574031573,0.00673,93367.0,93358.0,0.00013757]
[1732574031574,0.00262519,93361.0,93358.0,0.00013757]
[1732574032170,0.00262519,93361.0,93359.0,0.05357]
[1732574032371,0.00673,93367.0,93366.0,0.053566]
[1732574032570,0.3608,93372.0,93371.0,0.053563]
[1732574032773,0.3608,93383.0,93381.0,0.053557]
[1732574032975,0.3609076,93401.0,93390.0,0.053552]
[1732574032976,0.3608,93399.0,93390.0,0.053552]
[1732574033175,0.3608,93399.0,93398.0,0.053548]
[1732574034070,0.3108,93399.0,93398.0,0.374748]
[1732574034272,0.0001076,93401.0,93400.0,0.053547]
[1732574034779,0.0001076,93401.0,93400.0,0.374747]
[1732574036569,0.00918294,93401.0,93400.0,0.374747]
[1732574037477,0.0001076,93401.0,93400.0,0.374747]
[1732574038470,0.0092652,93401.0,93400.0,0.374747]
[1732574040185,0.00930614,93401.0,93400.0,0.374747]
[1732574040482,0.00695,93402.0,93400.0,0.3212]
[1732574040674,0.00695,93402.0,93401.0,0.374746]
[1732574040875,0.00695,93402.0,93401.0,0.053546]
[1732574041079,0.00695,93402.0,93401.0,0.374746]
[1732574042483,0.053535,93420.0,93419.0,0.053536]
[1732574042673,0.3608,93422.0,93421.0,0.053535]
[1732574042881,0.05353,93430.0,93429.0,0.053529]
[1732574043186,0.3608,93431.0,93421.0,7.927e-05]
[1732574043392,0.3608,93431.0,93430.0,0.053529]
[1732574043877,0.3608,93431.0,93430.0,0.06436849]
[1732574044983,0.3608,93431.0,93430.0,0.01083949]
[1732574045298,0.053534,93423.0,93422.0,0.053533]
[1732574045480,0.0941319,93423.0,93422.0,0.02943593]
[1732574045884,0.4549319,93423.0,93422.0,0.02943593]
[1732574046477,0.053534,93422.0,93421.0,0.01075444]
[1732574046682,0.053534,93422.0,93421.0,7.927e-05]
[1732574046683,0.06886458,93422.0,93421.0,7.927e-05]
[1732574046885,0.06886458,93422.0,93421.0,0.05361427]
[1732574047284,0.18788469,93422.0,93421.0,0.05361427]
[1732574047483,0.18788469,93422.0,93421.0,7.927e-05]
[1732574047484,0.053534,93422.0,93421.0,7.927e-05]
[1732574047688,0.1479089,93422.0,93421.0,7.927e-05]
[1732574047988,0.0943749,93422.0,93421.0,7.927e-05]
[1732574048187,0.0943749,93422.0,93421.0,0.05361327]
[1732574048396,0.414333,93423.0,93421.0,7.927e-05]
[1732574048397,0.41489301,93423.0,93421.0,7.927e-05]
[1732574048585,0.7215973,93423.0,93421.0,2.7e-07]
[1732574048891,0.43529178,93422.0,93383.0,0.053556]
[1732574049088,0.3608,93387.0,93386.0,0.00334798]
[1732574049289,0.414354,93387.0,93386.0,0.00334798]
[1732574049509,0.414354,93387.0,93381.0,0.01247192]
[1732574049510,0.053556,93384.0,93381.0,0.01247192]
[1732574049699,0.053556,93384.0,93381.0,0.00160616]
[1732574049994,0.053556,93383.0,93382.0,0.00348117]
[1732574050389,0.3608,93387.0,93383.0,0.053556]
[1732574050793,0.053556,93384.0,93382.0,0.00013256]
[1732574051098,0.053556,93384.0,93383.0,0.00334861]
[1732574051389,0.053556,93384.0,93383.0,0.00334865]
[1732574053286,0.053556,93384.0,93382.0,0.00013256]
[1732574054092,0.3608,93387.0,93382.0,0.00013256]
[1732574054395,0.053556,93383.0,93382.0,0.05368856]
[1732574054585,0.053556,93383.0,93382.0,0.05703717]
[1732574054785,0.053556,93383.0,93382.0,0.00348117]
[1732574055088,0.053556,93383.0,93382.0,0.00013256]
[1732574055800,0.053563,93372.0,93368.0,0.01081063]
[1732574056093,0.3608,93373.0,93369.0,0.00334893]
[1732574056281,0.0308,93372.0,93361.0,0.053569]
[1732574056484,0.0308,93372.0,93338.0,0.3912]
[1732574056485,0.3608,93362.0,93352.0,0.01087039]
[1732574056789,0.3608,93362.0,93351.0,0.18172]
[1732574056790,0.053573,93354.0,93353.0,0.00348663]
[1732574057010,0.3608,93354.0,93353.0,0.00348663]
[1732574057489,0.3608,93354.0,93353.0,0.00013734]
[1732574058204,0.45516467,93354.0,93342.0,0.00160693]
[1732574058394,0.3608,93343.0,93322.0,0.0332]
[1732574058698,0.3608,93333.0,93324.0,0.18507016]
[1732574059002,0.00938511,93332.0,93317.0,1.5]
[1732574059197,0.00938511,93331.0,93324.0,0.00010023]
[1732574059398,0.00938511,93331.0,93318.0,0.3608]
[1732574059399,0.3608,93325.0,93318.0,0.3608]
[1732574059592,0.02552125,93324.0,93318.0,0.3608]
[1732574059788,0.3608,93325.0,93318.0,0.3608]
[1732574059789,0.05016646,93323.0,93318.0,0.3608]
[1732574059992,0.02552125,93322.0,93318.0,0.3608]
[1732574060195,0.02552125,93321.0,93318.0,0.3608]
[1732574060389,0.05016646,93320.0,93316.0,0.01069096]
[1732574060588,0.02552125,93319.0,93312.0,0.053596]
[1732574060800,0.3608,93325.0,93312.0,0.053596]
[1732574060801,0.01613614,93318.0,93312.0,0.053596]
[1732574061099,0.3608,93325.0,93306.0,0.18176]
[1732574061100,0.0249242,93317.0,93306.0,0.18176]
[1732574061296,0.0249242,93316.0,93306.0,0.18176]
[1732574061607,0.0249242,93315.0,93307.0,0.00013664]
[1732574061897,0.0249242,93314.0,93307.0,0.00013664]
[1732574062100,0.0249242,93313.0,93307.0,0.00013664]
[1732574062291,0.0249242,93312.0,93307.0,0.00013664]
[1732574062492,0.3608,93325.0,93307.0,0.00013664]
[1732574062493,0.02506873,93311.0,93307.0,0.00013664]
[1732574062694,0.02506873,93310.0,93307.0,0.00013664]
[1732574062889,0.02506873,93309.0,93307.0,0.00013664]
[1732574063198,0.02506873,93308.0,93307.0,0.18193664]
[1732574063400,0.02506873,93308.0,93307.0,0.32165664]
[1732574063600,0.02506873,93308.0,93307.0,0.00013664]
[1732574064517,0.02506873,93308.0,93284.0,0.0329]
[1732574064518,0.20686873,93308.0,93287.0,0.3608]
[1732574064700,0.3608,93290.0,93276.0,0.053617]
[1732574064900,0.053612,93285.0,93274.0,1.5]
[1732574065207,0.02506873,93284.0,93282.0,0.01047101]
[1732574065394,0.02506873,93284.0,93283.0,0.00173598]
[1732574065701,0.37044182,93284.0,93283.0,0.00173598]
[1732574065999,0.37044182,93284.0,93283.0,0.00012828]
[1732574066699,0.3608,93284.0,93283.0,0.00012828]
[1732574067795,0.3608,93284.0,93283.0,0.05374128]
[1732574068196,0.3608,93284.0,93283.0,0.37534128]
[1732574068497,0.3608,93287.0,93284.0,0.053612]
[1732574069804,0.3608,93286.0,93283.0,0.00012828]
[1732574072099,0.3608,93301.0,93286.0,0.053611]
[1732574072301,0.3608,93301.0,93300.0,0.053603]
[1732574072501,0.3608,93310.0,93300.0,0.18188]
[1732574072695,0.3608,93310.0,93294.0,0.3608]
[1732574072696,0.3608,93310.0,93295.0,0.18188]
[1732574072895,0.00905121,93308.0,93305.0,0.0536]
[1732574073096,0.00905121,93307.0,93305.0,0.0536]
[1732574073302,0.00905121,93306.0,93305.0,0.0536]
[1732574073705,0.00905121,93306.0,93297.0,0.053605]
[1732574073904,0.00905121,93305.0,93302.0,0.053602]
[1732574074206,0.053599,93308.0,93302.0,0.053602]
[1732574074207,0.00905121,93304.0,93303.0,0.18188]
[1732574075010,0.00905121,93304.0,93302.0,0.053602]
[1732574075011,0.053602,93303.0,93302.0,0.18188]
[1732574075207,0.06265321,93303.0,93302.0,0.18188]
[1732574075398,0.06265321,93303.0,93295.0,1.5006]
[1732574075399,0.00905121,93303.0,93295.0,0.0006]
[1732574075599,0.3608,93296.0,93293.0,0.18188]
[1732574075797,0.3608,93296.0,93287.0,0.01070368]
[1732574075798,0.3608,93288.0,93287.0,0.01070368]
[1732574075997,0.36985121,93288.0,93287.0,0.18188]
[1732574076201,0.36985121,93288.0,93287.0,0.3216]
[1732574077213,0.36985121,93288.0,93284.0,1.50056]
[1732574077411,0.36985121,93288.0,93283.0,0.01080846]
[1732574077708,0.00905121,93287.0,93284.0,0.053612]
[1732574077904,0.00905121,93286.0,93284.0,0.053612]
[1732574078103,0.00905121,93285.0,93284.0,0.053612]
[1732574078306,0.3608,93288.0,93285.0,0.053611]
[1732574078615,0.00933668,93287.0,93283.0,0.00012828]
[1732574078910,0.3608,93284.0,93283.0,0.00012828]
[1732574079111,0.37013668,93284.0,93283.0,0.00012828]
[1732574079915,0.38523531,93284.0,93282.0,0.02960482]
[1732574080106,0.02443531,93283.0,93282.0,0.02960482]
[1732574080509,0.02443531,93283.0,93282.0,0.35120482]
[1732574080899,0.00933668,93283.0,93282.0,0.65128199]
[1732574081101,0.3608,93298.0,93288.0,0.05361]
[1732574081299,0.3608,93298.0,93297.0,0.053605]
[1732574081510,0.3608,93298.0,93289.0,0.54272]
[1732574081714,0.3608,93298.0,93297.0,0.053605]
[1732574081901,0.3608,93298.0,93297.0,0.375165]
[1732574082100,0.3608,93298.0,93297.0,0.053605]
[1732574082307,0.3608,93298.0,93297.0,0.375165]
[1732574082708,0.00012269,93309.0,93297.0,0.32156]
[1732574082910,0.00012269,93309.0,93308.0,0.053599]
[1732574084401,0.00012269,93309.0,93308.0,0.375119]
[1732574084911,0.00012269,93309.0,93308.0,0.38827791]
[1732574085313,0.3608,93320.0,93318.0,0.053592]
[1732574085810,0.09436467,93324.0,93318.0,0.053592]
[1732574086015,0.01531363,93323.0,93319.0,0.053592]
[1732574086211,0.01531363,93322.0,93321.0,0.053591]
[1732574086619,0.01531363,93322.0,93321.0,0.235671]
[1732574087310,0.01531363,93322.0,93321.0,0.55724114]
[1732574087710,0.09436467,93331.0,93329.0,0.053586]
[1732574087909,0.053581,93339.0,93337.0,0.053582]
[1732574088110,0.12581956,93340.0,93321.0,0.36089014]
[1732574088410,0.41439,93322.0,93321.0,9.014e-05]
[1732574088806,0.50897549,93322.0,93321.0,9.014e-05]
[1732574089008,0.3608,93322.0,93321.0,9.014e-05]
[1732574089208,0.0020248,93322.0,93321.0,0.05368114]
[1732574089411,0.0020248,93322.0,93321.0,0.37516114]
[1732574090510,0.0020248,93322.0,93321.0,0.40626114]
[1732574091018,0.01736652,93322.0,93321.0,0.40626114]
[1732574091709,0.05036652,93322.0,93321.0,0.40626114]
[1732574092215,0.0350248,93322.0,93321.0,0.40626114]
[1732574093114,0.04433145,93322.0,93321.0,0.40626114]
[1732574094007,0.03470145,93322.0,93321.0,0.40626114]
[1732574095214,0.03470145,93322.0,93321.0,0.58830114]
[1732574095520,0.09458601,93343.0,93327.0,0.053587]
[1732574095721,0.45538601,93345.0,93344.0,0.053578]
[1732574096019,0.3608,93345.0,93344.0,0.053578]
[1732574096919,0.3618,93345.0,93344.0,0.053578]
[1732574097611,0.415377,93345.0,93344.0,0.053578]
[1732574097811,0.36327274,93345.0,93344.0,0.05371489]
[1732574098022,0.36427274,93345.0,93344.0,0.05371489]
[1732574098222,0.00347274,93345.0,93344.0,0.05371489]
[1732574098814,0.36427274,93345.0,93344.0,0.05371489]
[1732574099119,0.36427274,93345.0,93344.0,0.00013689]
[1732574099120,0.41784974,93345.0,93344.0,0.00013689]
[1732574100617,0.41784974,93345.0,93337.0,0.19505675]
[1732574100618,0.41784974,93345.0,93334.0,0.053583]
[1732574100820,0.414383,93335.0,93334.0,0.053583]
[1732574101120,0.053591,93322.0,93321.0,0.053591]
[1732574101320,0.414391,93322.0,93321.0,0.053591]
[1732574101725,0.414391,93322.0,93321.0,0.05373017]
[1732574101920,0.41586374,93322.0,93321.0,0.05373017]
[1732574102514,0.41586374,93322.0,93321.0,0.00013917]
[1732574103422,0.41586374,93322.0,93321.0,0.05373017]
[1732574103725,0.41674773,93322.0,93321.0,0.00013917]
[1732574105020,0.41733684,93322.0,93321.0,0.00013917]
[1732574107415,0.73881684,93322.0,93321.0,0.00013917]
[1732574107616,0.053602,93301.0,93300.0,0.05521057]
[1732574107818,0.41734784,93301.0,93300.0,0.23721057]
[1732574108027,0.41734784,93301.0,93300.0,0.06819954]
[1732574108227,0.41734784,93301.0,93300.0,0.25023954]
[1732574108725,0.41734784,93301.0,93300.0,0.25036446]
[1732574109024,0.41734784,93301.0,93300.0,0.01472146]
[1732574109227,0.41734784,93301.0,93300.0,0.06832446]
[1732574110520,0.41734784,93301.0,93300.0,0.01472146]
[1732574110718,0.41734784,93301.0,93300.0,0.06832446]
[1732574110921,0.36374584,93301.0,93300.0,0.06832446]
[1732574111115,0.41734784,93301.0,93300.0,0.06832446]
[1732574111316,0.41734784,93301.0,93300.0,0.01472146]
[1732574111522,0.41734784,93301.0,93300.0,0.00173249]
[1732574113020,0.51196735,93301.0,93300.0,0.00173249]
[1732574113221,0.41734784,93301.0,93300.0,0.00173249]
[1732574114026,0.51196735,93301.0,93300.0,0.00173249]
[1732574114225,0.41734784,93301.0,93300.0,0.00173249]
[1732574114624,0.41734784,93301.0,93300.0,0.00012492]
[1732574114625,0.51196735,93301.0,93300.0,0.00012492]
[1732574114832,0.41734784,93301.0,93300.0,0.00012492]
[1732574115127,0.5118119,93301.0,93300.0,0.00012492]
[1732574115328,0.41734784,93301.0,93300.0,0.00012492]
[1732574116134,0.54325502,93301.0,93300.0,0.00012492]
[1732574116330,0.54322158,93301.0,93300.0,0.00012492]
[1732574116724,0.053606,93296.0,93268.0,0.00160812]
[1732574116926,0.3608,93274.0,93273.0,0.053618]
[1732574117633,0.3608,93274.0,93268.0,0.00160812]
[1732574117634,0.05362,93270.0,93268.0,0.05522912]
[1732574117823,0.3608,93274.0,93269.0,0.00012975]
[1732574118021,0.3608,93274.0,93273.0,0.37231316]
[1732574118224,0.3608,93274.0,93273.0,0.05067316]
[1732574118423,0.36988748,93274.0,93273.0,0.05067316]
[1732574120430,0.3608,93274.0,93273.0,0.05067316]
[1732574121720,0.3608,93274.0,93273.0,0.02637316]
[1732574122829,0.3608,93274.0,93273.0,0.20817316]
[1732574123133,0.3608,93274.0,93273.0,0.52981316]
[1732574124228,0.36214406,93274.0,93273.0,0.52981316]
[1732574124541,0.37113131,93274.0,93273.0,0.52981316]
[1732574126630,0.37113131,93274.0,93273.0,0.34801316]
[1732574126932,0.37113131,93274.0,93273.0,0.52985316]
[1732574128028,0.37113131,93274.0,93273.0,0.34801316]
[1732574128227,0.37113131,93274.0,93273.0,0.52985316]
[1732574128630,0.01033131,93274.0,93273.0,0.52985316]
[1732574128928,0.01033131,93274.0,93273.0,0.20821316]
[1732574129236,0.053616,93270.0,93269.0,0.00012975]
[1732574129431,0.01033131,93274.0,93269.0,0.00012975]
[1732574129432,0.00134406,93274.0,93269.0,0.00012975]
[1732574129732,0.053615,93271.0,93269.0,0.00012975]
[1732574130129,0.00134406,93270.0,93269.0,0.00012975]
[1732574131127,0.053615,93271.0,93269.0,0.00012975]
[1732574131727,0.053616,93270.0,93269.0,0.00012975]
[1732574133336,0.8304348,93270.0,93269.0,7.5e-07]
[1732574133631,0.8304348,93270.0,93230.0,0.14155619]
[1732574133632,0.91643805,93270.0,93230.0,0.14155619]
[1732574133837,0.91643805,93270.0,93239.0,0.18184]
[1732574133838,0.414427,93250.0,93239.0,0.18184]
[1732574134139,0.50900822,93250.0,93239.0,0.18184]
[1732574134335,0.414427,93250.0,93239.0,0.18184]
[1732574134635,0.50896036,93250.0,93249.0,0.0017097]
[1732574134832,0.50895392,93250.0,93249.0,0.0017097]
[1732574135034,0.053643,93222.0,93215.0,0.053647]
[1732574135239,0.414443,93222.0,93221.0,0.0130527]
[1732574135534,0.414443,93222.0,93210.0,0.16390619]
[1732574135535,0.3608,93222.0,93211.0,0.053649]
[1732574135834,0.3608,93222.0,93210.0,0.00064]
[1732574135835,0.05365,93211.0,93210.0,0.00064]
[1732574136037,0.3608,93212.0,93207.0,0.053652]
[1732574136232,0.05365,93211.0,93210.0,0.00012406]
[1732574136735,0.05365,93211.0,93192.0,0.01277334]
[1732574136736,0.05366,93193.0,93192.0,0.01277334]
[1732574137033,0.053664,93186.0,93185.0,0.18184]
[1732574137238,0.3608,93193.0,93181.0,0.0006]
[1732574137239,0.053666,93183.0,93181.0,0.0006]
[1732574137444,0.3608,93193.0,93179.0,0.00160966]
[1732574137445,0.053667,93180.0,93179.0,0.00160966]
[1732574137628,0.053667,93180.0,93179.0,0.00174887]
[1732574140030,0.375627,93180.0,93179.0,0.00174887]
[1732574140235,0.375627,93180.0,93179.0,0.00013921]
[1732574140433,0.053667,93180.0,93179.0,0.00013921]
[1732574141136,0.375627,93180.0,93179.0,0.00013921]
[1732574142629,0.053671,93173.0,93160.0,0.02030783]
[1732574142842,0.414471,93173.0,93160.0,0.13056402]
[1732574143139,0.414471,93173.0,93160.0,0.02030783]
[1732574143140,0.736471,93173.0,93160.0,0.02030783]
[1732574143636,0.736471,93173.0,93172.0,0.06141455]
[1732574144341,0.053678,93161.0,93160.0,3.8e-07]
[1732574144537,0.596238,93161.0,93160.0,3.8e-07]
[1732574144734,1.218278,93161.0,93160.0,3.8e-07]
[1732574145041,1.23147993,93161.0,93160.0,3.8e-07]
[1732574145241,1.23147993,93161.0,93132.0,0.0027]
[1732574145242,0.053684,93152.0,93138.0,0.009826]
[1732574145432,0.414491,93139.0,93138.0,1e-06]
[1732574145740,0.99344,93139.0,93118.0,0.3608]
[1732574145943,0.053707,93111.0,93101.0,0.0027]
[1732574146149,0.053707,93111.0,93101.0,0.11025619]
[1732574146444,0.053707,93111.0,93110.0,0.00011291]
[1732574146635,0.375907,93111.0,93110.0,0.00011291]
[1732574146942,0.371907,93111.0,93110.0,0.00011291]
[1732574147450,0.053711,93104.0,93100.0,0.1]
[1732574147642,0.053713,93101.0,93100.0,0.06661259]
[1732574147834,0.557793,93101.0,93100.0,0.06661259]
[1732574148139,0.557793,93101.0,93077.0,0.3608]
[1732574148140,0.053714,93099.0,93077.0,0.3608]
[1732574148334,0.50408,93101.0,93069.0,0.06960789]
[1732574148335,0.053724,93082.0,93078.0,0.04274582]
[1732574148534,0.048474,93082.0,93079.0,9.044e-05]
[1732574148729,0.048474,93082.0,93081.0,0.3608]
[1732574149343,0.048474,93082.0,93079.0,9.044e-05]
[1732574149344,0.053725,93080.0,93079.0,9.044e-05]
[1732574150336,0.3608,93083.0,93079.0,9.044e-05]
[1732574150546,0.3608,93080.0,93079.0,9.044e-05]
[1732574150733,0.053725,93081.0,93079.0,9.044e-05]
[1732574151134,0.3608,93080.0,93079.0,9.044e-05]
[1732574153444,0.37393132,93080.0,93079.0,9.044e-05]
[1732574154338,0.69625132,93080.0,93079.0,9.044e-05]
[1732574154542,0.37393132,93080.0,93079.0,9.044e-05]
[1732574154735,0.69625132,93080.0,93079.0,9.044e-05]
[1732574157937,0.71774989,93080.0,93079.0,9.044e-05]
[1732574160239,0.44915489,93080.0,93079.0,9.044e-05]
[1732574161246,0.37393132,93080.0,93079.0,9.044e-05]
[1732574161449,0.32393132,93080.0,93079.0,0.05381644]
[1732574162447,0.37765632,93080.0,93079.0,9.044e-05]
[1732574162846,0.37765632,93080.0,93079.0,0.05381644]
[1732574163149,0.32393132,93080.0,93079.0,9.044e-05]
[1732574163346,0.32393132,93080.0,93079.0,0.05381644]
[1732574164245,0.37765632,93080.0,93079.0,0.05381644]